Cogmind - Beta 15 @@@ ROGUE MODE // 2025.08.07 @ 16:03:55 Player: Zoe Result: Destroyed by G-47 Trooper with Particle Gun Performance ------------- Evolutions (2) 1000 Regions Visited (5) 1000 Robots Destroyed (24) 120 Value Destroyed (739) 739 Prototype IDs (0) 0 Alien Tech Used (0) 0 Bonus (200) 200 TOTAL SCORE: 3059 Bonus ------- Entered Garrisons 200 Cogmind --------- Core Integrity 0/550 Matter 90/300 Energy 22/100 System Corruption 4% Temperature Critical (1036) Movement Core (50) Location -8/Garrison Parts ------- > --- POWER (1) -------- (None) > --- PROPULSION (3) --- (None) > --- UTILITY (5) ------ (None) > --- WEAPON (2) ------- (None) > --- INVENTORY (5) ---- Light Nuclear Core Small Storage Unit Relay Coupler [Hunter] (17) Plasma Cannon Plasma Cannon Peak State ------------ > --- POWER ------------ Light Nuclear Core > --- PROPULSION ------- Aluminum Leg Carbon-fiber Leg Titanium Leg > --- UTILITY ---------- Cryofiber Web Medium Storage Unit Structural Scanner Sensor Array Particle Charger > --- WEAPON ----------- EM Pulse Cannon Heavy Particle Cannon > --- INVENTORY -------- Improved Ion Engine Light Nuclear Core Aluminum Leg Cryofiber Web Small Storage Unit Assault Rifle Heavy Assault Rifle Minigun Grenade Launcher Improved Datajack [Rating: 27] Favorites ----------- Power Ion Engine Engine Ion Engine Power Core Light Nuclear Core Propulsion Aluminum Leg Treads Light Treads Leg Aluminum Leg Utility Structural Scanner Device Structural Scanner Storage Medium Storage Unit Protection Light Armor Plating Weapon Light Assault Rifle Energy Gun Medium Laser Energy Cannon Heavy Particle Cannon Ballistic Gun Light Assault Rifle Special Weapon Mining Laser Special Melee Weapon Improved Datajack Build | -11 -10 -10 -10 -8 -8 ------- Run | Yrd Mat Min Sub Mat Gar Slots Evolved 4 | . . . . 4 . Power . | . . . . . . Propulsion 1 | . . . . 1 . Utility 3 | . . . . 3 . Weapon . | . . . . . . Parts Attached 44 | 8 7 3 . 15 11 Power 6 | 1 1 1 . 1 2 Engine 3 | 1 1 1 . . . Core 3 | . . . . 1 2 Reactor . | . . . . . . Propulsion 12 | 2 2 . . 5 3 Treads 2 | 2 . . . . . Leg 10 | . 2 . . 5 3 Wheel . | . . . . . . Hover . | . . . . . . Flight . | . . . . . . Utility 10 | 2 3 . . 4 1 Device 7 | 1 2 . . 4 . Storage 2 | 1 1 . . . . Processor . | . . . . . . Hackware . | . . . . . . Protection 1 | . . . . . 1 Artifact . | . . . . . . Weapon 16 | 3 1 2 . 5 5 Energy Gun 1 | 1 . . . . . Energy Cannon 5 | . . . . 2 3 Ballistic Gun 7 | 2 . 2 . 2 1 Ballistic Cannon . | . . . . . . Launcher . | . . . . . . Special Weapon 2 | . 1 . . 1 . Impact Weapon . | . . . . . . Slashing Weapon . | . . . . . . Piercing Weapon . | . . . . . . Special Melee Weapon 1 | . . . . . 1 Unidentified Prototypes . | . . . . . . Parts Lost 22 | . 3 1 . 4 14 Power 4 | . 1 1 . . 2 Propulsion 6 | . 1 . . 1 4 Utility 7 | . . . . 2 5 Weapon 5 | . 1 . . 1 3 Highest Loss Streak 8 | . 1 1 . 3 8 To Critical Strikes . | . . . . . . Average Backups 8 | 3 7 9 10 9 9 Power . | . . . . 1 1 Propulsion 1 | 1 2 3 3 1 . Utility 2 | . 2 4 4 1 2 Weapon 3 | 1 2 2 3 4 4 Tool/Special . | . . . . . . Unused Backups 10 | 1 . . . . 9 Power 1 | . . . . . 1 Propulsion . | . . . . . . Utility 3 | . . . . . 3 Weapon 6 | 1 . . . . 5 Tool/Special . | . . . . . . Average Slot Usage (%) 95 | . 98 95 100 97 76 Engine 7 | . 13 9 14 2 . Core 3 | . . . . 6 8 Treads 8 | . 25 . . . . Leg 18 | . 2 28 28 26 21 Device 22 | . 14 14 14 34 21 Storage 11 | . 14 14 14 9 9 Energy Gun 1 | . 2 10 . . . Energy Cannon 1 | . . . . 1 7 Ballistic Gun 17 | . 19 17 28 15 6 Special Weapon 2 | . 6 . . . . Peak Build Rating 27 | 7 9 10 10 27 25 Average Rating 13 | 5 7 8 10 19 19 On Entrance 9 | . 7 8 10 10 23 Naked Turns 1 | . . . . . 1 Heaviest Build 34 | 14 19 22 22 33 34 Greatest Support 42 | 40 40 20 20 42 37 Greatest Overweight (x) 8 | 4 . 1 1 8 7 Average Overweight (x) . | . . . 1 . . Largest Inventory Capacity 10 | 8 10 10 10 10 10 Average Capacity 9 | 7 8 10 10 10 9 Most Carried 10 | 7 9 10 10 10 10 Average Carried 8 | 4 7 9 10 9 9 Final Capacity 10 | 8 10 10 10 10 5 Final Carried 10 | 6 9 10 10 10 5 Class Distribution -------------------- 71% | Mutant 22% | Scavenger-Mutant 6% | Scavenger-Skirmisher Dominant Class ---------------- Mutant | -10/Materials Mutant | -10/Mines Mutant | -10/Subcaves Scavenger-Mutant | -8/Materials Mutant | -8/Garrison Resources | -11 -10 -10 -10 -8 -8 ----------- Run | Yrd Mat Min Sub Mat Gar Matter Collected 960 | 271 253 60 . 165 211 Remotely . | . . . . . . Salvage Created 814 | 50 281 25 . 208 250 Parts 55 | 12 14 2 . 9 18 Haulers Intercepted . | . . . . . . Recyclers Shooed . | . . . . . . Parts Field Recycled . | . . . . . . Retrieved Matter . | . . . . . . Parts Self-Destructed . | . . . . . . Prevented . | . . . . . . Kills | -11 -10 -10 -10 -8 -8 ------- Run | Yrd Mat Min Sub Mat Gar Combat Hostiles Destroyed 20 | . 7 2 . 4 7 Guns 14 | . 7 2 . 4 1 Cannons 6 | . . . . . 6 Classes Destroyed 6 | 1 2 1 . 2 . Tunneler 3 | 3 . . . . . Watcher 1 | . 1 . . . . Swarmer 5 | . . 2 . . 3 Grunt 11 | . 7 . . 2 2 Sentry 3 | . . . . 1 2 Hunter 1 | . . . . 1 . Best Kill Streak 4 | 1 3 2 . 1 4 Combat Bots Only 4 | . 3 2 . 1 4 Max Kills in Single Turn 1 | 1 1 1 . 1 1 Gunslinging . | . . . . . . Exploded . | . . . . . . Melee . | . . . . . . Uniques/NPCs Destroyed . | . . . . . . Combat | -11 -10 -10 -10 -8 -8 -------- Run | Yrd Mat Min Sub Mat Gar Hostile Shots Fired 290 | . 56 13 1 85 135 Missed 64 | . 13 4 1 22 24 Hits 226 | . 43 9 . 63 111 Projectile 226 | . 43 9 . 63 111 Critical Strikes 8 | . . . . 1 7 Damage Taken 3220 | . 535 73 . 978 1634 Core 617 | . 43 20 . 124 430 Absorbed by Shields . | . . . . . . Core Remaining (%) 87 | 100 . . 74 . . Volleys Fired 113 | 8 40 6 . 34 25 Largest 2 | 2 2 2 . 2 2 Hottest 160 | 70 100 70 . 138 160 Shots Fired 207 | 16 75 12 . 58 46 Gun 164 | 16 71 12 . 42 23 Cannon 29 | . . . . 6 23 Launcher . | . . . . . . Special 14 | . 4 . . 10 . Kinetic 145 | 14 60 6 . 42 23 Thermal 59 | 2 15 6 . 13 23 Explosive . | . . . . . . Electromagnetic 3 | . . . . 3 . Robot Hit Streak 17 | 4 17 9 . 10 12 Robot Miss Streak 3 | 2 2 2 . 2 3 Penetration Max . | . . . . . . Secondary Targets 1 | . . . . . 1 Max Gunslinging Chain 1 | . . . . . 1 Shots Hit Robots 140 | 8 55 8 . 36 33 Core Hits 47 | 4 19 2 . 10 12 Critical Kills . | . . . . . . Critical Parts Destroyed . | . . . . . . Critical Strikes 1 | . . 1 . . . Burn 1 | . . 1 . . . Melee Attacks . | . . . . . . Impact . | . . . . . . Slashing . | . . . . . . Piercing . | . . . . . . Sneak Attacks . | . . . . . . Combat Hostiles . | . . . . . . Follow-up Attacks . | . . . . . . Damage Inflicted 1989 | 103 552 94 . 507 733 Guns 1371 | 103 552 94 . 403 219 Cannons 618 | . . . . 104 514 Explosions . | . . . . . . Melee . | . . . . . . Ramming . | . . . . . . Kinetic 1189 | 103 438 26 . 403 219 Thermal 752 | . 114 68 . 56 514 Explosive . | . . . . . . Electromagnetic 48 | . . . . 48 . Impact . | . . . . . . Slashing . | . . . . . . Piercing . | . . . . . . Highest Corruption 4 | . . . . 4 4 Average Corruption 4 | . . . . 4 4 Corruption Purged . | . . . . . . Corruption Blocked . | . . . . . . Effects 16 | . . . . 7 9 Message Errors 2 | . . . . . 2 Matter Fused 4 | . . . . 3 1 Heat Flow Errors 4 | . . . . 1 3 Energy Discharges 5 | . . . . 2 3 Data Loss (major) 1 | . . . . 1 . Overload Shots . | . . . . . . Overflow Damage 8 | . . . . . 8 Projectiles 8 | . . . . . 8 Explosions . | . . . . . . Melee . | . . . . . . Knockbacks . | . . . . . . Impact . | . . . . . . Kinetic . | . . . . . . Secondary . | . . . . . . Self-Inflicted Damage . | . . . . . . Shots . | . . . . . . Rammed . | . . . . . . Targets Rammed . | . . . . . . Kicked . | . . . . . . Crushed . | . . . . . . Highest Temperature 1058 | 18 160 50 . 245 1058 Average Temperature 128 | 10 41 27 . 76 422 Received Heat Transfer 1215 | . 297 . . 234 684 Effects 11 | . . . . . 11 Shutdowns 1 | . . . . . 1 Interference 2 | . . . . . 2 Matter Decay 1 | . . . . . 1 Short Circuit 2 | . . . . . 2 Damage (minor) 1 | . . . . . 1 Damage (major) 3 | . . . . . 3 Damage (core) 1 | . . . . . 1 Siege Activations . | . . . . . . Martial Activations . | . . . . . . Shielding Activations . | . . . . . . Robots Disrupted . | . . . . . . Combat Hostiles . | . . . . . . Robots Corrupted . | . . . . . . Combat Hostiles . | . . . . . . Parts Fried . | . . . . . . Impact Corruptions . | . . . . . . Robots Melted . | . . . . . . Combat Hostiles . | . . . . . . Parts Melted 1 | . 1 . . . . Heat Transferred 1412 | . 333 259 . 74 746 Parts Sabotaged . | . . . . . . Parts Stolen . | . . . . . . Parts Stripped . | . . . . . . Power Chain Reactions . | . . . . . . Alert | -11 -10 -10 -10 -8 -8 ------- Run | Yrd Mat Min Sub Mat Gar Maximum Alert Level . | . . . . . . Low Security (%) 100 | 100 100 100 . 100 100 Level 1 . | . . . . . . Level 2 . | . . . . . . Level 3 . | . . . . . . Level 4 . | . . . . . . Level 5 . | . . . . . . High Security . | . . . . . . Max Security . | . . . . . . Peak Influence 125 | 5 104 55 . 30 125 Initial 28 | . . 28 . . 18 Average 12 | 1 14 26 . 4 29 Influence Increases 636 | 15 247 65 . 154 155 Destroy 0b10 Robot/C 400 | . 140 40 . 80 140 Destroy 0b10 Robot/NC 20 | 15 5 . . . . Destroy Leader 92 | . 42 10 . 30 10 Successful Hack 50 | . 27 . . 23 . Disable Machine 15 | . . . . 15 . Destroy Structure 14 | . 3 . . 6 5 Lose Combat Pursuer 45 | . 30 15 . . . Influence Decreases 561 | 15 173 124 15 125 109 Entered New Map 65 | . . 46 8 . 11 Time Decay 369 | 15 153 78 . 123 . Lost Part 120 | . 20 . . 2 98 Lost Ally 7 | . . . 7 . . Squads Dispatched 9 | . 2 1 . 6 . Investigation 6 | . 2 . . 4 . Extermination . | . . . . . . Reinforcement 1 | . . . . 1 . Assault 1 | . . 1 . . . Garrison 1 | . . . . 1 . Intercept . | . . . . . . Searches Triggered . | . . . . . . Construction Impeded . | . . . . . . Haulers Reinforced . | . . . . . . Active Scanning Responses . | . . . . . . Cargo Convoy Interrupts . | . . . . . . Stealth | -11 -10 -10 -10 -8 -8 --------- Run | Yrd Mat Min Sub Mat Gar Distress Signals 2 | . 1 . . 1 . Communications Jammed . | . . . . . . Distress Signals . | . . . . . . Times Spotted 40 | . 13 5 1 9 12 Peak Tracking Total 6 | . 3 3 2 3 6 Tactical Retreats 2 | . 1 1 . . . Traps | -11 -10 -10 -10 -8 -8 ------- Run | Yrd Mat Min Sub Mat Gar Traps Triggered 3 | . 1 . . 1 1 Indirectly . | . . . . . . Trap Hack Attempts . | . . . . . . Triggered . | . . . . . . Disarmed . | . . . . . . Reprogrammed . | . . . . . . Reused . | . . . . . . Traps Extracted . | . . . . . . Installed . | . . . . . . Triggered . | . . . . . . Machines | -11 -10 -10 -10 -8 -8 ---------- Run | Yrd Mat Min Sub Mat Gar Machines Disabled 1 | . . . . 1 . Max in Single Turn 1 | . . . . 1 . Garrison Relay 1 | . . . . . 1 Machines Repaired . | . . . . . . Machines Dismantled . | . . . . . . Machines Sabotaged . | . . . . . . Overloaded Fab Kills . | . . . . . . Hacking | -11 -10 -10 -10 -8 -8 --------- Run | Yrd Mat Min Sub Mat Gar Machines Accessed 10 | . 6 . . 4 . Terminals 9 | . 6 . . 3 . Fabricators . | . . . . . . Repair Stations . | . . . . . . Recycling Units . | . . . . . . Scanalyzers . | . . . . . . Garrison Access 1 | . . . . 1 . Total Hacks 31 | . 20 . . 11 . Successful 18 | . 12 . . 6 . Failed 13 | . 8 . . 5 . Catastrophic 1 | . 1 . . . . Database Lockouts . | . . . . . . Manual 30 | . 23 . . 7 . Terminals 30 | . 20 . . 10 . Fabricators . | . . . . . . Repair Stations . | . . . . . . Recycling Units . | . . . . . . Scanalyzers . | . . . . . . Garrison Access 1 | . . . . 1 . Terminal Hacks 4 | . 3 . . 1 . Robot Analysis 2 | . 2 . . . . Recall Investigation 1 | . . . . 1 . Registered Components 1 | . 1 . . . . Fabricator Hacks . | . . . . . . Repair Station Hacks . | . . . . . . Recycling Unit Hacks . | . . . . . . Scanalyzer . | . . . . . . Garrison Access Hacks 1 | . . . . 1 . Unlock Access 1 | . . . . 1 . Unauthorized Hacks 13 | . 9 . . 4 . Terminals 13 | . 9 . . 4 . Track 4 | . 3 . . 1 . Botnet 9 | . 6 . . 3 . Fabricators . | . . . . . . Repair Stations . | . . . . . . Recycling Units . | . . . . . . Scanalyzers . | . . . . . . Garrison Access . | . . . . . . Data Cores Recovered . | . . . . . . Used . | . . . . . . Hacking Detections 10 | . 6 . . 4 . Full Trace Events 7 | . 4 . . 3 . Feedback Events . | . . . . . . Feedback Blocked . | . . . . . . Robot Schematics Acquired . | . . . . . . Robots Built . | . . . . . . Authchips . | . . . . . . Time . | . . . . . . Total Robot Build Rating . | . . . . . . Part Schematics Acquired . | . . . . . . Parts Built . | . . . . . . Authchips . | . . . . . . Time . | . . . . . . Total Part Build Rating . | . . . . . . Parts Repaired . | . . . . . . Time . | . . . . . . Parts Recycled . | . . . . . . Recycled Matter . | . . . . . . Retrieved Matter . | . . . . . . Retrieved Components . | . . . . . . Parts Scanalyzed . | . . . . . . Part Schematics Acquired . | . . . . . . Parts Damaged . | . . . . . . Bothacking | -11 -10 -10 -10 -8 -8 ------------ Run | Yrd Mat Min Sub Mat Gar Used RIF Installer . | . . . . . . Robots Hacked . | . . . . . . Non-combat . | . . . . . . Combat . | . . . . . . Robot Hacks Applied . | . . . . . . Relay Couplers Released 5 | . . . . . 5 Machine Destruction 5 | . . . . . 5 Fabnet Peak Effective % . | . . . . . . Robots Rewired . | . . . . . . Allies Hacked . | . . . . . . Hacks Repelled . | . . . . . . Allies | -11 -10 -10 -10 -8 -8 -------- Run | Yrd Mat Min Sub Mat Gar Total Allies 1 | . . 1 . . . Largest Group 1 | . . 1 1 . . Highest-Rated Group 31 | . . 31 31 . . Highest-Rated Ally 31 | . . 31 31 . . Total Orders . | . . . . . . Ally Attacks 2 | . . . 2 . . Total Damage 40 | . . . 40 . . Kills . | . . . . . . Allies Corrupted . | . . . . . . Allies Melted . | . . . . . . Intel | -11 -10 -10 -10 -8 -8 ------- Run | Yrd Mat Min Sub Mat Gar Active Infowar (turns) 2304 | 16 798 173 268 875 174 Sensors 1045 | . . . . 871 174 Terrain 293 | . 124 . . 169 . Structural 1870 | . 532 173 268 875 22 Seismic 829 | 16 142 . . 671 . Robot Analysis Total 2 | . 2 . . . . Derelict Logs Recovered . | . . . . . . Drone Launches . | . . . . . . Drone Recoveries . | . . . . . . Exploration | -11 -10 -10 -10 -8 -8 ------------- Run | Yrd Mat Min Sub Mat Gar Turns Passed 2550 | 149 809 173 268 875 276 Spaces Moved 888 | 65 249 104 86 253 131 Core 29 | 23 . . . 1 5 Treads 235 | 42 193 . . . . Legs 624 | . 56 104 86 252 126 Wheels . | . . . . . . Hover . | . . . . . . Flight . | . . . . . . Fastest Speed 50 | 50 120 120 190 120 50 Average Speed 141 | 158 151 132 190 121 129 Slowest Speed 450 | 250 160 190 190 450 400 Overloaded Moves . | . . . . . . Propulsion Burnouts . | . . . . . . Robots Hopped . | . . . . . . Potential Cave-ins 4 | . . . . 4 . Cave-ins Triggered 1 | . . . . 1 . Exploration Rate (%) 21 | 7 56 23 7 18 16 Regions Visited 5 Branch Regions 2 Pre-discovered Areas . | . . . . . . Known Exits Taken 1 | . . . . 1 . Unknown Exits Taken 4 | 1 1 1 1 . . Scrap Searched . | . . . . . . Spaces Dug 14 | . 4 . . 10 . Terrain Destroyed 14 | . 4 . . 10 . Melee . | . . . . . . Projectile 14 | . 4 . . 10 . AOE . | . . . . . . Terrain Rammed . | . . . . . . Walls Destroyed . | . . . . . . Machines Disabled . | . . . . . . Actions | -11 -10 -10 -10 -8 -8 --------- Run | Yrd Mat Min Sub Mat Gar Total 1953 | 96 601 129 191 741 195 Wait 816 | . 285 13 106 412 . Move 883 | 64 248 103 85 252 131 Hop . | . . . . . . Pick Up 52 | 14 10 2 . 13 13 Fast Attach 5 | . . 1 . 1 3 Attach 28 | 7 5 . . 7 9 Detach . | . . . . . . Swap 36 | 2 11 2 . 16 5 Drop 20 | 1 2 2 . 6 9 Fire 113 | 8 40 6 . 34 25 Melee . | . . . . . . Ram . | . . . . . . Kick . | . . . . . . Crush . | . . . . . . Escape Stasis . | . . . . . . Rewire . | . . . . . . Trap . | . . . . . . Miscellaneous . | . . . . . . Route ------- -11/Scrapyard -10/Materials (discovered 2 exits: [*Mat] / [*Min]) -10/Mines -10/Subcaves -8/Materials -8/Garrison History --------- Turn | Location | Event 11 | -11/Scrapyard | Discovered new exit (range 15) 150 | -11/Scrapyard | Entered Materials 325 | -10/Materials | Build established: Mutant 766 | -10/Materials | Discovered new exit (range 14) 921 | -10/Materials | Discovered new exit (range 16) 959 | -10/Materials | Entered Mines 1060 | -10/Mines | Met a Derelict testing a Signal Generator 1071 | -10/Mines | Discovered new exit (range 8) 1073 | -10/Mines | Joined a pair of Derelicts in attacking an 0b10 outpost 1132 | -10/Mines | Entered Subcaves 1132 | -10/Subcaves | Accompanied by 1 ally 1132 | -10/Subcaves | Discovered new exit (range 9) 1400 | -10/Subcaves | Entered Materials 1400 | -8/Materials | Evolved 4 slots: Propulsion x1, Utility x3 1850 | -8/Materials | Build established: Scavenger-Mutant 2075 | -8/Materials | Crushed by falling debris 2106 | -8/Materials | Lost 3 parts (1n1u1w) 2186 | -8/Materials | Garrison activated, responded to threat 2271 | -8/Materials | Identified exit to Garrison 2275 | -8/Materials | Entered Garrison 2325 | -8/Garrison | Triggered checkpoint 2325 | -8/Garrison | Garrison Relay disabled 2369 | -8/Garrison | Core integrity fell below 50% 2389 | -8/Garrison | Lost 8 parts (1p3n2u2w) 2444 | -8/Garrison | Build established: Mutant 2465 | -8/Garrison | Triggered checkpoint 2544 | -8/Garrison | Core integrity fell below 20% 2550 | -8/Garrison | Released all parts (5) 2551 | -8/Garrison | Destroyed by G-47 Trooper with Particle Gun Last Messages --------------- 02540_ Aluminum Leg broken. 02540_ Overheating: Short circuit. 02540_ System corrupted: Heat flow error (+250). 02541_ Lgt. Nuclear Core destroyed. 02541_ Critical hit (Burn: +37). 02542_ Overheating: Sensor Array damaged (-10). 02543_ Sensor Array broken. 02543_ Overheating: Short circuit. 02543_ Cryofiber Web destroyed. 02544_ Overheating: Core damaged (-82). 02545_ Broken Sensor Array destroyed. 02545_ Plasma Cannon destroyed. 02546_ Overheating: Matter decay (-13). 02547_ Overheating: System interference. 02547_ Plasma Cannon temporarily disabled. 02550_ Released Plasma Cannon. 02550_ Released Titanium Leg. 02550_ Released Med. Storage Unit. 02550_ Released Broken Aluminum Leg. 02550_ Released Plasma Cannon. Map ----- +----------------------------------------------------+ | ???????????????????????????????????????????????? | | ?????????#####?????????????????????????????????? | | ?????????# #?????????????????????????????????? | | ?????????# #?????????????????????????????????? | | ?????????# #?????????????????????????????????? | | ?????????# #??????????????????????#######????? | | ?????????# #??????????????????????#""=""#????? | | ?????????# #??????????????????###### ! ######? | | ?????????# #??????????????????# ^ * #? | | ?????????# #??????????????????# ^ #? | | ?????????# #??????????????????# ### !*######? | | ?????????# #??????????????????# #?# #?????? | | ?????????# #################### #?#####?????? | | ?????????# #???????????? | | ?????????# #???????????? | | ?????????# #???????????? | | ?????????####################### #???????????? | | ???????????????????????????????# #???????????? | | ???????????? ??????????????????# #???????????? | | ???????????? ?????????????????# #???????????? | | ??????????? ? ????????????????# #???????????? | | ???????????? " ???????????????# #???????????? | | ?????????#"" """ ???????#####??# #???????????? | | ?????????#" " ??????# [[#??# #???????????? | | ?????????#" ######= !#### #???????????? | | ?????????#" " ]!g]@]= #???????????? | | ???????????"""" !x*=/ #???????????? | | ????????????##"#######%[######## #???????????? | | ?????????????????????#%[#??????# #???????????? | | ????????????????????##[ ##?????# #???????????? | | ????????????????????# []]#?????# #???????????? | | ????????????????????# ] ]#?????# #???????????? | | ????????????????????# [ ]#?????# #???????????? | | ????????????????????# [%]#?????? #???????????? | | ????????????????????#!]]]#?????? ???????????? | | ????????????????????##Y/##?????? ???????????? | | ?????????????????????# *#??????? ??????????? | | ?????????????????????####???????#####??????????? | | ???????????????????????????????????????????????? | | ???????????????????????????????????????????????? | | ???????????????????????????????????????????????? | | ???????????????????????????????????????????????? | | ???????????????????????????????????????????????? | | ???????????????????????????????????????????????? | | ???????????????????????????????????????????????? | | ???????????????????????????????????????????????? | | ???????????????????????????????????????????????? | | ???????????????????????????????????????????????? | | ???????????????????????????????????????????????? | | ???????????????????????????????????????????????? | +----------------------------------------------------+ Best States ------------- Heat Dissipation 45 Energy Generation 14 Energy Capacity 265 Matter Stores 300 Matter Capacity 300 Sight Range 16 Robot Scan Range 14 Terrain Scan Range 16 Terrain Scan Density 10 Base Temperature (-) 100 Armor Coverage 150 Evasion (%) 55 Recoil Reduction 2 Particle Charging 15 Item Schematics ----------------- None Robot Schematics ------------------ None Fabricated ------------ Nothing Repaired ---------- Nothing Alien Tech Used ----------------- None Achievements -------------- None Challenges ------------ None Game ------ Seed MultinovaAngularBiocell Manual? 0 Play Time 00:30:39 Cumulative 31.4 hours Start 2025.08.07 @ 15:35:41 End 2025.08.07 @ 16:03:55 Sessions 1 Manual Loads 0 Difficulty Rogue Special Mode None Game No. 63 Rogue 60 Adventurer 3 Explorer 0 Win Type - Total 0 Types 0/0/0/0/0/0/0/0/0/0 Lore% 26 Gallery% 23 Achievement% 25 Wizard Run 0 Options --------- Layout 1 ASCII 0 Keyboard 0 Movement Mouse Keybinds 0 Fullscreen 1 Font 24/Smallcaps Map View 50x35 Zoom Use 0% Tactical HUD 1 Map Filters NONE Filters NONE Steam 1 RUN: ac5043b8-9c28-4592-b4d6-63c788c16fbc